Cogmind - Beta 13 @@@ ROGUE MODE // 2024.08.03 @ 22:11:35 Player: btracker Result: Destroyed by Y-45 Defender with Heavy Assault Rifle Performance ------------- Evolutions (1) 500 Regions Visited (2) 400 Robots Destroyed (18) 90 Value Destroyed (405) 405 Prototype IDs (1) 20 Alien Tech Used (0) 0 Bonus (0) 0 TOTAL SCORE: 1415 Bonus ------- None Cogmind --------- Core Integrity 0/400 Matter 142/300 Energy 100/100 System Corruption 0% Temperature Cool (9) Movement Core (350) Ox6 Location -9/Materials Parts ------- > --- POWER (1) -------- (None) > --- PROPULSION (2) --- (None) > --- UTILITY (2) ------ Large Storage Unit > --- WEAPON (4) ------- (None) > --- INVENTORY (15) --- Ion Engine Light Ion Engine Light Ion Engine Wheel Wheel Small Storage Unit Peak State ------------ > --- POWER ------------ Heavy Ion Engine > --- PROPULSION ------- Aluminum Leg Aluminum Leg > --- UTILITY ---------- Large Storage Unit Seismic Detector > --- WEAPON ----------- Assault Rifle Grenade Launcher Mining Laser > --- INVENTORY -------- Ion Engine Light Ion Engine Light Ion Engine Wheel Wheel Small Storage Unit [Rating: 10] Favorites ----------- Power Ion Engine Engine Ion Engine Propulsion Aluminum Leg Leg Aluminum Leg Utility Seismic Detector Device Seismic Detector Storage Small Storage Unit Weapon Assault Rifle Energy Gun Medium Laser Ballistic Gun Assault Rifle Launcher Grenade Launcher Special Weapon Mining Laser Build | -11 -10 -9 ------- Run | Yrd Mat Mat Slots Evolved 2 | . . 2 Power . | . . . Propulsion . | . . . Utility . | . . . Weapon 2 | . . 2 Parts Attached 12 | 7 1 4 Power 2 | 1 . 1 Engine 2 | 1 . 1 Core . | . . . Reactor . | . . . Propulsion 3 | 2 . 1 Treads . | . . . Leg 3 | 2 . 1 Wheel . | . . . Hover . | . . . Flight . | . . . Utility 3 | 2 . 1 Device 1 | 1 . . Storage 2 | 1 . 1 Processor . | . . . Hackware . | . . . Protection . | . . . Artifact . | . . . Weapon 4 | 2 1 1 Energy Gun 1 | 1 . . Energy Cannon . | . . . Ballistic Gun 1 | 1 . . Ballistic Cannon . | . . . Launcher 1 | . 1 . Special Weapon 1 | . . 1 Impact Weapon . | . . . Slashing Weapon . | . . . Piercing Weapon . | . . . Special Melee Weapon . | . . . Unidentified Prototypes 1 | . . 1 Parts Lost 8 | . . 8 Power 1 | . . 1 Propulsion 3 | . . 3 Utility 1 | . . 1 Weapon 3 | . . 3 Highest Loss Streak 7 | . . 7 To Critical Strikes . | . . . Average Slot Usage (%) 80 | . 100 70 Engine 10 | . 14 9 Leg 19 | . 28 15 Device 10 | . 14 9 Storage 11 | . 14 11 Ballistic Gun 11 | . 14 10 Launcher 10 | . 12 9 Special Weapon 3 | . . 5 Naked Turns . | . . . Heaviest Build 35 | 15 16 35 Greatest Support 20 | 20 20 20 Greatest Overweight (x) 6 | . . 6 Average Overweight (x) . | . . 1 Largest Inventory Capacity 15 | 8 8 15 Average Capacity 10 | 7 8 13 Most Carried 7 | 6 6 7 Average Carried 5 | 3 5 6 Final Capacity 15 | 8 8 15 Final Carried 6 | 6 5 6 Class Distribution -------------------- 77% | Mutant 22% | Gunner Dominant Class ---------------- Mutant | -10/Materials Mutant | -9/Materials Resources | -11 -10 -9 ----------- Run | Yrd Mat Mat Matter Collected 361 | 306 . 55 Remotely . | . . . Salvage Created 505 | 150 115 240 Parts 27 | 10 6 11 Haulers Intercepted . | . . . Recyclers Shooed 1 | . . 1 Parts Field Recycled . | . . . Retrieved Matter . | . . . Parts Self-Destructed . | . . . Prevented . | . . . Kills | -11 -10 -9 ------- Run | Yrd Mat Mat Combat Hostiles Destroyed 9 | . 2 7 Guns 1 | . . 1 Cannons 1 | . . 1 AOE 7 | . 2 5 Classes Destroyed 6 | 2 3 1 Worker 2 | . 2 . Builder 1 | . . 1 Tunneler 3 | 3 . . Recycler 2 | 1 1 . Watcher 1 | . 1 . Grunt 9 | . 2 7 Best Kill Streak 6 | 3 6 4 Combat Bots Only 3 | . 2 3 Max Kills in Single Turn 2 | 1 2 2 Gunslinging . | . . . Exploded 1 | . 1 1 Melee . | . . . Uniques/NPCs Destroyed . | . . . Combat | -11 -10 -9 -------- Run | Yrd Mat Mat Hostile Shots Fired 110 | . 10 100 Missed 28 | . 4 24 Damage Taken 1178 | . 152 1026 Core 440 | . 26 414 Absorbed by Shields . | . . . Core Remaining (%) 94 | 100 89 . Volleys Fired 34 | 12 7 15 Largest 2 | 2 2 2 Hottest 120 | 70 50 120 Shots Fired 61 | 24 14 23 Gun 46 | 24 7 15 Cannon . | . . . Launcher 14 | . 7 7 Special 1 | . . 1 Kinetic 34 | 12 7 15 Thermal 13 | 12 . 1 Explosive 14 | . 7 7 Electromagnetic . | . . . Robot Hit Streak 6 | 3 4 6 Robot Miss Streak 3 | 3 2 2 Penetration Max . | . . . Secondary Targets . | . . . Shots Hit Robots 36 | 13 8 15 Core Hits 29 | 5 9 15 Critical Kills . | . . . Critical Parts Destroyed . | . . . Critical Strikes . | . . . Melee Attacks . | . . . Impact . | . . . Slashing . | . . . Piercing . | . . . Sneak Attacks . | . . . Combat Hostiles . | . . . Follow-up Attacks . | . . . Damage Inflicted 1151 | 177 524 450 Guns 322 | 177 35 110 Cannons . | . . . Explosions 802 | . 489 313 Melee . | . . . Ramming 3 | . . 3 Kinetic 224 | 79 35 110 Thermal 122 | 98 . 24 Explosive 802 | . 489 313 Electromagnetic . | . . . Impact . | . . . Slashing . | . . . Piercing . | . . . Highest Corruption . | . . . Average Corruption . | . . . Corruption Purged . | . . . Corruption Blocked . | . . . Overload Shots . | . . . Overflow Damage 55 | . 52 3 Projectiles . | . . . Explosions 55 | . 52 3 Melee . | . . . Knockbacks . | . . . Impact . | . . . Kinetic . | . . . Secondary . | . . . Self-Inflicted Damage 218 | . 91 127 Shots 8 | . 2 6 Rammed 1 | . . 1 Targets Rammed 1 | . . 1 Kicked . | . . . Crushed . | . . . Highest Temperature 45 | 45 2 11 Average Temperature 14 | 17 2 6 Received Heat Transfer 489 | . 36 453 Siege Activations . | . . . Robots Corrupted . | . . . Combat Hostiles . | . . . Parts Fried . | . . . Impact Corruptions . | . . . Robots Melted . | . . . Combat Hostiles . | . . . Parts Melted 1 | 1 . . Heat Transferred 346 | 296 . 50 Parts Sabotaged . | . . . Parts Stolen . | . . . Parts Stripped . | . . . Power Chain Reactions . | . . . Alert | -11 -10 -9 ------- Run | Yrd Mat Mat Peak Influence 338 | 20 191 338 Initial 80 | . 13 80 Average 129 | 9 62 228 Maximum Alert Level 1 | . . 1 Low Security (%) 67 | 100 100 33 Level 1 32 | . . 66 Level 2 . | . . . Level 3 . | . . . Level 4 . | . . . Level 5 . | . . . High Security . | . . . Max Security . | . . . Squads Dispatched 4 | . 1 3 Investigation 4 | . 1 3 Extermination . | . . . Reinforcement . | . . . Assault . | . . . Garrison . | . . . Intercept . | . . . Searches Triggered . | . . . Construction Impeded . | . . . Haulers Reinforced . | . . . Active Scanning Responses . | . . . Cargo Convoy Interrupts . | . . . Stealth | -11 -10 -9 --------- Run | Yrd Mat Mat Distress Signals . | . . . Communications Jammed . | . . . Distress Signals . | . . . Times Spotted 17 | . 4 13 Peak Tracking Total 5 | . 3 5 Tactical Retreats . | . . . Traps | -11 -10 -9 ------- Run | Yrd Mat Mat Traps Triggered 1 | . . 1 Indirectly . | . . . Trap Hack Attempts . | . . . Triggered . | . . . Disarmed . | . . . Reprogrammed . | . . . Reused . | . . . Traps Extracted . | . . . Installed . | . . . Triggered . | . . . Machines | -11 -10 -9 ---------- Run | Yrd Mat Mat Machines Disabled 3 | . 2 1 Max in Single Turn 1 | . 1 1 Machines Repaired . | . . . Machines Dismantled . | . . . Machines Sabotaged . | . . . Overloaded Fab Kills . | . . . Hacking | -11 -10 -9 --------- Run | Yrd Mat Mat Machines Accessed 3 | . 1 2 Terminals 3 | . 1 2 Fabricators . | . . . Repair Stations . | . . . Recycling Units . | . . . Scanalyzers . | . . . Garrison Access . | . . . Total Hacks 10 | . 4 6 Successful 3 | . 2 1 Failed 7 | . 2 5 Catastrophic 2 | . 1 1 Database Lockouts . | . . . Manual 7 | . 1 6 Terminals 10 | . 4 6 Fabricators . | . . . Repair Stations . | . . . Recycling Units . | . . . Scanalyzers . | . . . Garrison Access . | . . . Terminal Hacks 3 | . 2 1 Record 2 | . 2 . Hauler Manifests 1 | . . 1 Fabricator Hacks . | . . . Repair Station Hacks . | . . . Recycling Unit Hacks . | . . . Scanalyzer . | . . . Garrison Access Hacks . | . . . Unauthorized Hacks . | . . . Terminals . | . . . Fabricators . | . . . Repair Stations . | . . . Recycling Units . | . . . Scanalyzers . | . . . Garrison Access . | . . . Data Cores Recovered . | . . . Used . | . . . Hacking Detections 3 | . 1 2 Full Trace Events 3 | . 1 2 Feedback Events . | . . . Feedback Blocked . | . . . Robot Schematics Acquired . | . . . Robots Built . | . . . Authchips . | . . . Time . | . . . Total Robot Build Rating . | . . . Part Schematics Acquired . | . . . Parts Built . | . . . Authchips . | . . . Time . | . . . Total Part Build Rating . | . . . Parts Repaired . | . . . Time . | . . . Parts Recycled . | . . . Recycled Matter . | . . . Retrieved Matter . | . . . Retrieved Components . | . . . Parts Scanalyzed . | . . . Part Schematics Acquired . | . . . Parts Damaged . | . . . Bothacking | -11 -10 -9 ------------ Run | Yrd Mat Mat Used RIF Installer . | . . . Robots Hacked . | . . . Non-combat . | . . . Combat . | . . . Robot Hacks Applied . | . . . Relay Couplers Released . | . . . Fabnet Peak Effective % . | . . . Robots Rewired . | . . . Allies Hacked . | . . . Hacks Repelled . | . . . Allies | -11 -10 -9 -------- Run | Yrd Mat Mat Total Allies . | . . . Largest Group . | . . . Highest-Rated Group . | . . . Highest-Rated Ally . | . . . Total Orders . | . . . Ally Attacks . | . . . Total Damage . | . . . Kills . | . . . Allies Corrupted . | . . . Allies Melted . | . . . Intel | -11 -10 -9 ------- Run | Yrd Mat Mat Robot Analysis Total . | . . . Derelict Logs Recovered . | . . . Drone Launches . | . . . Drone Recoveries . | . . . Exploration | -11 -10 -9 ------------- Run | Yrd Mat Mat Turns Passed 597 | 165 138 294 Spaces Moved 303 | 97 94 112 Core 12 | 5 . 7 Treads . | . . . Legs 291 | 92 94 105 Wheels . | . . . Hover . | . . . Flight . | . . . Fastest Speed 50 | 50 120 120 Average Speed 155 | 116 120 218 Slowest Speed 350 | 120 120 350 Overloaded Moves . | . . . Propulsion Burnouts . | . . . Robots Hopped . | . . . Cave-ins Triggered . | . . . Exploration Rate (%) 13 | 4 24 12 Regions Visited 2 Branch Regions . Pre-discovered Areas . | . . . Known Exits Taken . | . . . Unknown Exits Taken 2 | 1 1 . Scrap Searched . | . . . Spaces Dug . | . . . Terrain Destroyed 134 | . 75 59 Melee . | . . . Projectile . | . . . AOE 134 | . 75 59 Terrain Rammed . | . . . Walls Destroyed . | . . . Machines Disabled . | . . . Actions | -11 -10 -9 --------- Run | Yrd Mat Mat Total 360 | 121 105 134 Wait 2 | . 2 . Move 301 | 96 93 112 Hop . | . . . Pick Up 7 | 6 . 1 Fast Attach 10 | 7 1 2 Attach 1 | . . 1 Detach . | . . . Swap 1 | . . 1 Drop 3 | . 2 1 Fire 34 | 12 7 15 Melee . | . . . Ram 1 | . . 1 Kick . | . . . Crush . | . . . Escape Stasis . | . . . Rewire . | . . . Trap . | . . . Miscellaneous . | . . . Route ------- -11/Scrapyard -10/Materials -9/Materials History --------- Turn | Location | Event 2 | -11/Scrapyard | Met Revision 17 2 | -11/Scrapyard | Discovered new exit (range 16) 166 | -11/Scrapyard | Entered Materials 257 | -10/Materials | Discovered new exit (range 16) 304 | -10/Materials | Entered another Materials area 304 | -9/Materials | Evolved 2 slots: Weapon x2 305 | -9/Materials | Build established: Mutant 577 | -9/Materials | Core integrity fell below 50% 588 | -9/Materials | Core integrity fell below 20% 598 | -9/Materials | Destroyed by Y-45 Defender with Heavy Assault Rifle Last Messages --------------- 00516_ U-05 Engineer builds a Wall. 00518_ The unstable cave ceiling collapses. 00518_ U-05 Engineer builds a Wall. 00519_ Acquired Aluminum Leg. 00526_ U-05 Engineer lays Concrete. 00536_ Connecting with Terminal... 00536_ ALERT: Suspicious activity at Terminal M003. Dispatching Investigation squad. 00542_ Grenade Launcher destroyed. 00550_ Hvy. Ion Engine destroyed. 00555_ Seismic Detector destroyed. 00559_ G-34 Mercenary destroyed. 00560_ Mining Laser destroyed. 00565_ Aluminum Leg destroyed. 00568_ Critical hit (Burn: +37). 00570_ Assault Rifle destroyed. 00571_ Aluminum Leg destroyed. 00578_ Acquired 37 matter. 00579_ R-06 Scavenger collects Aluminum Leg. 00582_ Slammed into R-06 Scavenger. Map ----- +----------------------------------------------------+ | | | | | | | | | ?????????????????????????????????????????????????? | | ?????????????????????????????????????????????????? | | ?????????????????????????????????????????????????? | | ?????????????????????????????????????????????????? | | ?????????????????????????????#???????????????????? | | ????????????????????????????? ???????????????????? | | ????????????????????????????? ???????????????????? | | ????????????????????????????? ???????????????????? | | ????????????????????????????# #??????????????????? | | ????????????????????????????# #??????????????????? | | ????????????????????????????# +??????????????????? | | ????????????????????????????# #??????????????????? | | ????????????????????????????# #??????????????????? | | ????????????????????????????# #??????????????????? | | ????????????????????????????# #?????###########??? | | ????????????????????????????# ####### #??? | | ????????????????????????????# + T #??? | | ????????????????????????????# #### #??? | | ????????????????????????????# #??# #? # | | ????????????????????????????#! #?#########+## # | | ???????????????????# ###### = ##### # # | | ???????????????????# @ Y g % % # | | ???????????????????# ###################/# ##### | | ??????????????????????????????????# ##???? | | ??????????????????????????????????# """ """ #????? | | ??????????????????????????????????# """ """ #????? | | ??????????????????????????????????# """ """ #????? | | ??????????????????????????????????# #????? | | ??????????????????????????????????# #????? | | ??????????????????????????????????# #????? | | ??????????????????????????????????# #????? | | ????????????????????????????????#######+#####?#### | | ????????????????????????????????# #??## | | ????????????????????????????????# ####### # | | ????????????????????????????????# ! * *% | | ????????????????????????????????# ####### #### # | | ????????????????????????????? ??????# ## | | ?????????????????????????? ???????# #?# | | ??????????????????????????? ????????#+#??# | | ??????????????????????????? ??????????????# | | ??????????????????????????? ???????????????# | | ???????????????????????????? ????????????????# " | | ???????????????????????????? ?????????????????# T | | ???????????????????????????????????????????????# " | | ???????????????????????????????????????????????# | | ?????????????????????????????????????????####+#### | +----------------------------------------------------+ Best States ------------- Heat Dissipation 28 Energy Generation 14 Energy Capacity 280 Matter Stores 300 Matter Capacity 300 Sight Range 16 Terrain Scan Density 10 Evasion (%) 55 Item Schematics ----------------- None Robot Schematics ------------------ None Fabricated ------------ Nothing Alien Tech Used ----------------- None Achievements -------------- None Challenges ------------ None Game ------ Seed PlatingEnergyLegs Manual? 0 Play Time 00:08:39 Cumulative 6.5 hours Start 2024.08.03 @ 22:05:24 End 2024.08.03 @ 22:11:35 Sessions 1 Manual Loads 0 Difficulty Rogue Special Mode None Game No. 19 Rogue 19 Adventurer 0 Explorer 0 Win Type - Total 0 Types 0/0/0/0/0/0/0/0/0 Lore% 8 Gallery% 15 Achievement% 13 Wizard Run 0 Options --------- Layout 1 ASCII 0 Keyboard 0 Movement Mouse Keybinds 0 Fullscreen 1 Font 24/Smallcaps Map View 50x35 Zoom Use 0% Tactical HUD 1 Map Filters NONE Filters NONE Steam 1 RUN: 8f76e609-7a55-477f-86e9-0502f5f63e13